bitfinex-derivatives/quotes_ETHF0:USTF0_20250110
["timestamp","ask_amount","ask_price","bid_price","bid_amount"]
[1736541371187,0.30597,3268.2,3268.1,41.10597]
[1736541371581,0.30596,3268.3,3268.1,41.10597]
[1736541371977,5.33549499,3268.4,3268.1,41.10597]
[1736541372183,0.30596,3268.3,3268.2,0.30596]
[1736541372383,3.2078,3268.4,3268.3,0.30596]
[1736541372682,0.4755,3268.6,3268.0,5.33549499]
[1736541372880,0.30599,3268.0,3267.8,0.306]
[1736541373285,2.12769499,3268.4,3267.9,40.8]
[1736541373488,0.30597,3268.2,3268.0,0.30598]
[1736541373885,0.30597,3268.1,3268.0,0.30598]
[1736541374189,0.30598,3268.0,3267.9,40.8]
[1736541374791,0.30598,3268.1,3267.9,41.10599]
[1736541374990,0.30598,3268.0,3267.9,40.8]
[1736541376491,1.22368,3268.0,3267.9,40.8]
[1736541379097,0.9177,3268.0,3267.4,0.4644]
[1736541379399,0.30603,3267.5,3267.4,0.4644]
[1736541379591,0.30603,3267.5,3267.4,41.57044]
[1736541380391,2.12769499,3267.8,3267.4,41.2644]
[1736541380587,0.306,3267.9,3267.8,0.306]
[1736541380791,0.30601,3267.8,3267.7,0.30601]
[1736541381592,0.30602,3267.7,3267.4,41.2644]
[1736541381791,0.9177,3268.0,3267.5,0.30603]
[1736541381990,3.2078,3268.1,3268.0,0.30598]
[1736541382194,3.51377,3268.1,3268.0,0.30598]
[1736541382392,0.30597,3268.1,3268.0,0.30598]
[1736541382599,0.30597,3268.2,3268.0,41.10598]
[1736541382790,0.476,3268.5,3268.0,40.8]
[1736541382995,0.30597,3268.2,3268.1,0.74077]
[1736541383202,0.78194,3268.5,3268.3,0.30595]
[1736541383396,3.51373,3268.6,3268.5,0.30594]
[1736541383702,3.2078,3268.6,3268.5,0.30594]
[1736541384201,3.51373,3268.6,3268.4,0.30594]
[1736541384798,3.51373,3268.6,3268.1,3.6426]
[1736541384799,0.30594,3268.5,3268.1,3.6426]
[1736541385002,0.30594,3268.5,3268.3,0.30595]
[1736541385304,0.30597,3268.2,3268.1,3.6426]
[1736541385495,0.30597,3268.2,3268.1,0.4348]
[1736541386499,3.2078,3268.6,3268.5,0.30594]
[1736541386695,0.30593,3268.6,3268.5,0.30594]
[1736541387000,0.30591,3268.8,3268.3,3.97268]
[1736541387194,0.4762,3269.0,3268.5,0.30593]
[1736541387195,0.30593,3268.6,3268.5,0.30593]
[1736541387394,0.30592,3268.7,3268.5,0.30594]
[1736541387596,0.30592,3268.7,3268.6,40.8]
[1736541387996,0.30592,3268.7,3268.6,41.10593]
[1736541388199,0.30592,3268.7,3268.6,40.8]
[1736541389299,0.30597,3268.2,3268.1,0.74077]
[1736541389501,0.30597,3268.2,3268.1,0.4348]
[1736541391003,2.43366499,3268.2,3268.1,0.4348]
[1736541391196,2.43366499,3268.2,3267.9,3.2078]
[1736541391197,0.30598,3268.0,3267.9,3.2078]
[1736541391401,0.30598,3268.0,3267.9,3.51379]
[1736541391700,0.30598,3268.0,3267.9,3.2078]
[1736541392008,0.30598,3268.0,3267.9,3.51379]
[1736541392898,0.4571,3268.3,3267.9,3.2078]
[1736541393100,0.30595,3268.4,3268.3,0.30595]
[1736541393296,1.56194,3268.5,3268.4,0.30594]
[1736541393706,0.30594,3268.5,3268.4,41.10594]
[1736541393902,0.30594,3268.5,3268.4,40.8]
[1736541394209,2.43363499,3268.5,3268.4,40.8]
[1736541395911,2.43363499,3268.5,3268.4,41.10594]
[1736541396407,2.43363499,3268.5,3268.4,40.8]
[1736541397395,2.43363499,3268.5,3268.4,41.10594]
[1736541397800,0.30594,3268.5,3268.4,41.10594]
[1736541398209,1.23073,3268.7,3268.6,0.30593]
[1736541398410,3.51371,3268.8,3268.7,0.30592]
[1736541398608,0.30592,3268.7,3268.6,0.30592]
[1736541399511,2.12769499,3268.8,3268.4,40.8]
[1736541399714,2.43362499,3268.5,3268.4,40.8]
[1736541399906,2.12769499,3268.5,3268.0,0.4551]
[1736541400217,0.30597,3268.1,3268.0,0.76108]
[1736541400516,1.3902,3268.4,3268.0,41.2551]
[1736541400703,1.3902,3268.4,3268.2,0.30596]
[1736541400704,0.30596,3268.3,3268.2,0.30596]
[1736541401110,1.3902,3268.4,3268.0,41.2551]
[1736541401315,0.30597,3268.2,3268.1,0.30597]
[1736541401504,1.3902,3268.4,3268.0,41.2551]
[1736541401505,0.30597,3268.1,3268.0,41.2551]
[1736541402208,2.43366499,3268.1,3268.0,40.8]
[1736541402406,0.30603,3267.5,3267.4,0.4637]
[1736541402812,0.30603,3267.5,3267.4,41.2637]
[1736541403808,1.4109,3267.7,3267.4,41.2637]
[1736541404007,1.24131,3267.7,3267.6,0.30602]
[1736541405009,0.30602,3267.6,3267.5,0.30602]
[1736541408609,0.306,3267.9,3267.7,0.306]
[1736541409017,0.30601,3267.7,3267.6,3.2078]
[1736541409221,0.30603,3267.5,3267.4,41.2637]
[1736541410219,0.30603,3267.5,3267.4,41.56974]
[1736541411215,0.30603,3267.5,3267.4,40.8]
[1736541411406,0.30608,3266.9,3266.8,3.672]
[1736541411611,0.30608,3266.9,3266.8,0.4642]
[1736541412109,0.30608,3266.9,3266.8,41.2642]
[1736541412310,0.30608,3266.9,3266.8,40.8]
[1736541412617,2.43377499,3266.9,3266.8,40.8]
[1736541412921,0.30608,3266.9,3266.8,40.8]
[1736541413617,2.43377499,3266.9,3266.8,40.8]
[1736541414516,0.30608,3266.9,3266.8,41.10609]
[1736541415014,0.30608,3266.9,3266.8,0.30609]
[1736541415720,0.30608,3266.9,3266.8,41.10609]
[1736541415915,0.30607,3267.1,3267.0,0.30606]
[1736541418732,0.30607,3267.0,3266.9,0.75387]
[1736541420932,0.30607,3267.1,3267.0,0.30606]
[1736541421128,2.1407,3267.4,3266.9,0.4478]
[1736541421330,0.30607,3267.1,3267.0,0.30606]
[1736541421737,0.30607,3267.0,3266.9,0.75387]
[1736541422830,2.1407,3267.4,3266.9,0.75387]
[1736541422831,1.3756,3267.4,3266.9,0.4478]
[1736541423029,0.30607,3267.1,3267.0,0.30606]
[1736541423837,0.30607,3267.0,3266.9,0.75387]
[1736541424238,2.1407,3267.4,3266.9,0.75387]
[1736541424239,3.2078,3268.0,3266.9,7.57549499]
[1736541424430,3.2078,3268.0,3267.4,3.2078]
[1736541424431,0.8942,3267.9,3267.4,3.2078]
[1736541424736,0.30601,3267.7,3267.6,0.30601]
[1736541425329,0.306,3267.8,3267.7,0.306]
[1736541425535,0.30601,3267.7,3267.6,0.30601]
[1736541426539,0.306,3267.8,3267.7,0.306]
[1736541426842,0.30601,3267.7,3267.6,0.30601]
[1736541429538,0.8942,3267.9,3267.5,0.8783]
[1736541429743,0.75687,3268.1,3268.0,0.30598]
[1736541430049,0.30599,3268.0,3267.9,0.30598]
[1736541430950,0.75687,3268.1,3267.9,41.10598]
[1736541431137,0.30598,3268.0,3267.9,41.10598]
[1736541431347,1.24746,3268.3,3268.1,0.30596]
[1736541431645,0.30596,3268.2,3268.1,0.30596]
[1736541435046,0.9415,3268.3,3267.9,40.8]
[1736541435337,0.9415,3268.3,3268.0,0.30597]
[1736541435538,0.30597,3268.1,3268.0,0.30597]
[1736541435736,0.30596,3268.2,3267.9,40.8]
[1736541435938,0.9415,3268.3,3267.9,40.8]
[1736541436242,0.30597,3268.1,3268.0,0.30597]
[1736541436442,0.30598,3268.0,3267.9,40.8]
[1736541436939,0.30598,3268.0,3267.9,41.10599]
[1736541437145,0.9415,3268.3,3267.9,40.8]
[1736541437344,0.30596,3268.2,3268.1,0.30596]
[1736541437547,1.24745,3268.3,3268.2,0.30596]
[1736541438241,0.9415,3268.3,3268.2,0.30596]
[1736541438450,0.9415,3268.3,3267.9,40.8]
[1736541438836,0.9415,3268.3,3267.8,3.2078]
[1736541438837,0.30599,3267.9,3267.8,3.2078]
[1736541439041,2.43368499,3267.9,3267.8,3.2078]
[1736541439444,0.30599,3267.9,3267.8,3.2078]
[1736541439645,0.9415,3268.3,3267.8,3.2078]
[1736541439849,0.30596,3268.2,3268.1,0.30596]
[1736541440046,0.30596,3268.2,3267.8,3.6499]
[1736541440047,0.9415,3268.3,3267.8,3.6499]
[1736541440243,0.30597,3268.1,3268.0,0.30597]
[1736541440445,0.9415,3268.3,3267.8,3.6499]
[1736541440652,0.30599,3267.9,3267.8,3.2078]
[1736541441149,2.43368499,3267.9,3267.8,3.2078]
[1736541441448,0.30604,3267.3,3267.2,3.2078]
[1736541441747,0.30612,3266.5,3266.4,3.6886]
[1736541442045,0.30612,3266.5,3265.9,0.76543]
[1736541442046,0.30616,3266.0,3265.9,3.2078]
[1736541442240,0.30618,3265.9,3265.7,0.30619]
[1736541442437,2.12769499,3266.0,3265.3,7.98206935]
[1736541442745,0.30617,3265.9,3265.8,40.8]
[1736541444854,0.30623,3265.3,3265.0,0.30625]
[1736541445148,0.30622,3265.4,3265.1,0.30625]
[1736541445348,0.30622,3265.4,3265.2,40.8]
[1736541445843,3.2078,3265.8,3265.2,40.8]
[1736541446046,0.30622,3265.4,3265.2,40.8]
[1736541446243,3.2078,3265.8,3265.2,40.8]
[1736541446244,2.12769499,3265.7,3265.2,40.8]
[1736541446451,0.30623,3265.3,3265.2,40.8]
[1736541446647,0.30623,3265.4,3265.2,40.8]
[1736541447148,2.12769499,3265.7,3265.2,40.8]
[1736541447546,0.30622,3265.5,3265.2,41.10623]
[1736541447744,0.3062,3265.7,3265.5,0.3062]
[1736541447944,2.12769499,3265.7,3265.2,40.8]
[1736541448140,0.30623,3265.4,3265.2,41.10624]
[1736541448947,0.30623,3265.3,3265.2,40.8]
[1736541449152,0.30621,3265.5,3265.2,40.8]
[1736541449352,0.30621,3265.5,3265.3,0.30623]
[1736541449855,0.458,3265.6,3265.5,0.30621]
[1736541450549,3.2078,3265.8,3265.7,0.30619]
[1736541450740,3.51398,3265.8,3265.7,40.8]
[1736541451655,3.2078,3265.8,3265.7,40.8]
[1736541451854,5.78059499,3266.3,3265.8,0.30618]
[1736541452054,5.78059499,3266.3,3265.7,44.0078]
[1736541452347,0.30617,3266.0,3265.8,0.30618]
[1736541452946,5.78059499,3266.3,3265.7,44.0078]
[1736541453149,2.12769499,3266.0,3265.7,44.0078]
[1736541453353,0.30618,3265.8,3265.7,44.0078]
[1736541453554,0.30618,3265.9,3265.7,44.0078]
[1736541453745,0.30618,3265.9,3265.8,0.30618]
[1736541454555,2.12769499,3266.0,3265.9,0.30617]
[1736541454760,0.30616,3266.0,3265.9,0.30617]
[1736541455056,0.30618,3265.9,3265.7,44.0078]
[1736541455258,0.30618,3265.8,3265.7,44.0078]
[1736541455449,5.78059499,3266.3,3265.7,44.31399]
[1736541455655,2.12769499,3266.0,3265.7,44.0078]
[1736541455955,0.30618,3265.8,3265.7,40.8]
[1736541456156,0.30618,3265.9,3265.5,3.2078]
[1736541456454,0.30618,3265.9,3265.8,0.30618]
[1736541457154,0.30616,3266.1,3265.9,0.30617]
[1736541457346,5.78059499,3266.3,3265.6,44.0078]
[1736541457543,0.30615,3266.2,3266.1,0.30615]
[1736541457749,5.78059499,3266.3,3265.6,44.0078]
[1736541457949,0.30615,3266.2,3266.1,0.30615]
[1736541458951,5.78059499,3266.3,3265.6,44.0078]
[1736541459151,0.30618,3265.9,3265.8,0.30618]
[1736541460048,5.78059499,3266.3,3265.6,44.0078]
[1736541460253,6.08673499,3266.3,3266.2,0.30615]
[1736541460654,5.64163499,3266.3,3266.2,0.30615]
[1736541460850,0.4635,3266.4,3266.3,0.30614]
[1736541461160,0.76963,3266.4,3266.3,0.30614]
[1736541462160,0.30612,3266.5,3266.4,0.30613]
[1736541462556,2.43380499,3266.6,3266.5,0.30612]
[1736541463262,0.7873,3266.8,3266.7,0.3061]
[1736541464058,0.4812,3266.8,3266.5,3.2078]
[1736541464562,0.30611,3266.6,3266.5,3.51391]
[1736541465364,0.78729,3266.8,3266.7,0.3061]
[1736541466465,0.4812,3266.8,3266.7,0.3061]
[1736541466657,0.78729,3266.8,3266.7,0.3061]
[1736541466857,0.4812,3266.8,3266.7,0.3061]
[1736541467561,0.78729,3266.8,3266.7,0.3061]
[1736541469154,0.4812,3266.8,3266.5,3.2078]
[1736541469365,0.30611,3266.7,3266.6,0.3061]
[1736541470466,3.23059,3267.1,3266.5,3.2078]
[1736541470467,0.02279,3267.1,3266.5,3.2078]
[1736541470661,0.76499,3267.9,3266.0,1.99544]
[1736541470662,0.4825,3267.7,3267.0,2.12769499]
[1736541470861,0.4825,3267.7,3267.6,0.30601]
[1736541471866,0.78851,3267.7,3267.6,0.30601]
[1736541472069,0.4825,3267.7,3267.6,0.30601]
[1736541472271,0.78851,3267.7,3267.6,0.30601]
[1736541472457,0.30602,3267.6,3267.5,0.30602]
[1736541472770,0.4825,3267.7,3267.6,0.30601]
[1736541473469,0.4825,3267.7,3266.6,3.2078]
[1736541473678,2.12769499,3266.9,3266.6,0.4412]
[1736541474174,0.3061,3266.8,3266.6,0.74731]
[1736541474365,0.3061,3266.8,3266.6,0.4412]
[1736541474663,0.3061,3266.7,3266.6,0.4412]
[1736541477465,3.2078,3267.5,3266.6,3.649]
[1736541477668,0.30601,3267.6,3267.5,0.30602]
[1736541477866,0.9526,3267.7,3267.0,4.42458]
[1736541478058,0.9526,3267.7,3267.0,3.6594]
[1736541478361,0.30604,3267.4,3267.3,0.30604]
[1736541478563,0.9526,3267.7,3267.1,40.8]
[1736541478865,0.30603,3267.5,3267.4,0.30603]
[1736541479061,0.4513,3268.0,3267.4,3.2078]
[1736541479272,0.30602,3267.6,3267.5,0.30602]
[1736541480072,2.57899499,3268.0,3267.4,3.2078]
[1736541480073,0.30602,3267.5,3267.4,3.51382]
[1736541480269,0.30602,3267.5,3267.4,3.2078]
[1736541480471,0.30606,3267.1,3267.0,3.2078]
[1736541480767,0.30609,3266.8,3266.7,0.30609]
[1736541480969,0.76511,3267.3,3266.6,3.2078]
[1736541481366,0.3061,3266.7,3266.6,3.2078]
[1736541481569,0.3061,3266.7,3266.6,3.51391]
[1736541481868,0.30609,3266.9,3266.8,0.30609]
[1736541482067,3.79940499,3267.4,3266.6,3.2078]
[1736541482068,0.30607,3267.1,3266.6,3.2078]
[1736541482267,3.03429499,3267.4,3266.6,3.2078]
[1736541482466,0.30608,3267.0,3266.9,0.30608]
[1736541482766,3.79940499,3267.4,3266.6,3.2078]
[1736541482767,3.03429499,3267.4,3266.6,3.2078]
[1736541483174,0.30608,3266.9,3266.8,0.30608]
[1736541483363,3.03429499,3267.4,3266.6,3.2078]
[1736541483564,0.30607,3267.1,3266.6,3.2078]
[1736541483765,3.03429499,3267.4,3266.6,3.2078]
[1736541484071,0.9066,3267.4,3266.6,3.2078]
[1736541484265,0.30607,3267.0,3266.9,0.30608]
[1736541484466,0.9066,3267.4,3266.6,3.2078]
[1736541484467,0.9066,3267.4,3266.7,0.76525]
[1736541484667,1.21264,3267.4,3267.3,0.30604]
[1736541485068,0.30601,3267.7,3267.6,0.30601]
[1736541485269,0.9009,3267.8,3267.3,0.4687]
[1736541485470,0.30601,3267.7,3267.6,0.30601]
[1736541485670,0.9009,3267.8,3267.7,0.30601]
[1736541485877,3.51378,3268.0,3267.9,0.30599]
[1736541486074,0.77347,3268.1,3267.6,3.2078]
[1736541486278,0.30598,3268.0,3267.9,0.30598]
[1736541486576,0.74186,3268.2,3268.1,0.30597]
[1736541486780,0.30597,3268.1,3268.0,0.30598]
[1736541487074,0.30597,3268.1,3267.6,3.2078]
[1736541487075,0.4359,3268.2,3267.6,3.2078]
[1736541487277,0.30598,3268.1,3267.9,0.30598]
[1736541487581,0.76704,3268.4,3268.1,0.30597]
[1736541487877,0.30596,3268.3,3268.2,0.30596]
[1736541488279,0.4611,3268.4,3268.0,44.0078]
[1736541488280,0.30596,3268.2,3268.1,0.30596]
[1736541488579,0.30597,3268.1,3268.0,44.0078]
[1736541489680,2.12769499,3268.3,3268.0,3.2078]
[1736541489878,0.30597,3268.1,3268.0,3.51377]
[1736541490079,0.30597,3268.1,3267.6,44.0078]
[1736541490271,0.30596,3268.2,3268.1,0.30596]
[1736541490466,0.30596,3268.2,3267.6,44.77283]
[1736541490467,0.4611,3268.4,3267.6,44.77283]
[1736541490675,0.76704,3268.4,3268.3,0.30595]
[1736541491477,0.4611,3268.4,3267.9,0.463]
[1736541491677,0.30595,3268.3,3268.2,0.30595]
[1736541491877,0.4611,3268.4,3268.3,0.30595]
[1736541491878,0.76704,3268.4,3268.3,0.30595]
[1736541492071,0.4611,3268.4,3268.3,0.30595]
[1736541492270,0.4359,3268.6,3268.0,3.6461]
[1736541492476,0.8808,3268.6,3268.0,3.6461]
[1736541492678,0.30594,3268.4,3268.0,3.6461]
[1736541492872,0.30594,3268.4,3268.3,0.30595]
[1736541493269,3.00849499,3268.6,3268.0,3.6461]
[1736541493480,0.30595,3268.3,3268.2,0.30596]
[1736541493677,0.30595,3268.3,3268.0,3.6461]
[1736541493678,2.12769499,3268.3,3268.0,3.2078]
[1736541493868,0.30597,3268.1,3268.0,3.2078]
[1736541494378,0.30597,3268.1,3268.0,3.51378]
[1736541494578,0.30597,3268.1,3268.0,3.2078]
[1736541494779,0.30596,3268.2,3268.1,0.30597]
[1736541494974,0.30596,3268.2,3268.1,0.30596]
[1736541495170,0.30593,3268.5,3268.4,0.30593]
[1736541495374,6.21629499,3268.6,3268.2,0.30595]
[1736541495984,6.21629499,3268.6,3268.3,40.8]
[1736541496281,0.30595,3268.3,3268.2,0.30595]
[1736541496684,0.30595,3268.3,3268.2,41.10595]
[1736541496886,0.30595,3268.3,3268.2,40.8]
[1736541497080,6.98111499,3268.6,3268.0,3.51377]
[1736541497382,3.2078,3268.2,3267.0,3.2078]
[1736541497682,2.12769499,3267.7,3267.0,3.6907]
[1736541497883,0.30606,3267.2,3267.1,0.30606]
[1736541498381,0.30606,3267.1,3267.0,40.8]
[1736541498784,0.30606,3267.2,3267.1,0.30606]
[1736541498979,0.30606,3267.1,3267.0,41.10607]
[1736541499179,0.30606,3267.1,3267.0,40.8]
[1736541499481,0.30606,3267.1,3266.7,0.3061]
[1736541499482,0.3061,3266.8,3266.7,0.3061]
[1736541499679,0.3061,3266.8,3266.6,3.5139]
[1736541499877,0.76514,3267.3,3266.6,3.5139]
[1736541499878,5.33549499,3267.4,3266.6,3.2078]
[1736541500077,0.30605,3267.2,3267.1,0.30606]
[1736541500883,0.30605,3267.3,3267.2,0.30604]
[1736541501285,0.77943,3267.5,3267.4,0.30603]
[1736541502082,0.77943,3267.5,3267.0,3.97297]
[1736541502083,1.23752,3267.6,3267.5,0.30602]
[1736541503090,0.4787,3267.9,3267.8,0.306]
[1736541503091,0.78469,3267.9,3267.8,0.306]
[1736541503288,0.4559,3268.2,3268.1,0.30597]
[1736541503591,2.12769499,3268.9,3268.1,0.30597]
[1736541503796,1.529,3270.0,3268.1,0.30597]
[1736541503797,2.12769499,3269.2,3268.2,3.2078]
[1736541504089,3.2078,3269.1,3268.3,0.76488]
[1736541504288,0.30591,3268.8,3268.7,0.3059]
[1736541504490,0.3059,3268.9,3268.8,0.30589]
[1736541505090,1.3859,3269.4,3269.0,0.30588]
[1736541505286,0.30587,3269.1,3269.0,0.30588]
[1736541505483,1.3859,3269.4,3268.8,3.2078]
[1736541505688,0.3059,3268.9,3268.6,0.4565]
[1736541505889,5.33549499,3269.2,3268.4,3.2078]
[1736541506193,0.30592,3268.6,3268.5,41.10592]
[1736541506989,0.30591,3268.7,3268.6,0.30592]
[1736541507587,5.33549499,3269.2,3268.5,40.8]
[1736541507795,0.30592,3268.7,3268.6,0.30592]
[1736541508396,0.30592,3268.7,3268.5,0.30592]
[1736541508696,0.30592,3268.7,3268.4,44.0078]
[1736541509088,0.30592,3268.6,3268.5,0.30593]
[1736541509289,0.30592,3268.7,3268.5,0.30593]
[1736541509992,0.30592,3268.7,3268.4,44.0078]
[1736541510192,0.30592,3268.7,3268.5,0.30592]
[1736541510395,0.30592,3268.7,3268.6,0.30592]
[1736541510701,0.30592,3268.7,3268.4,44.0078]
[1736541510902,0.30592,3268.7,3268.6,0.30592]
[1736541511100,0.30591,3268.8,3268.4,44.0078]
[1736541511317,0.30587,3269.1,3269.0,0.30588]
[1736541511604,3.51367,3269.2,3269.1,0.30587]
[1736541511997,0.30587,3269.1,3269.0,0.30588]
[1736541512192,0.30587,3269.2,3269.0,0.30588]
[1736541512402,0.9231,3269.4,3269.3,0.30586]
[1736541512600,0.4559,3269.4,3269.2,3.2078]
[1736541513001,0.76175,3269.4,3269.2,3.2078]
[1736541513203,0.76175,3269.4,3269.3,0.30586]
[1736541513606,0.4559,3269.4,3269.3,0.30586]
[1736541514109,3.6687,3269.8,3269.7,0.30582]
[1736541514503,3.97451,3269.8,3269.7,0.30582]
[1736541514701,0.76671,3269.8,3269.2,3.97247]
[1736541514904,0.4609,3269.8,3269.7,0.30582]
[1736541515109,0.4807,3270.0,3269.6,44.0078]
[1736541515305,0.3058,3269.9,3269.8,0.30581]
[1736541516005,0.4582,3270.3,3269.6,40.8]
[1736541516204,0.30578,3270.2,3270.1,0.30577]
[1736541516399,3.2078,3271.2,3270.0,5.33549499]
[1736541516604,2.12769499,3271.1,3270.4,3.2078]
[1736541516913,0.30576,3270.3,3270.1,0.75798]
[1736541517114,2.89199499,3270.8,3270.1,0.4522]
[1736541517315,0.30577,3270.3,3270.1,0.30578]
[1736541517608,2.12769499,3270.5,3270.0,3.2078]
[1736541517800,0.76628,3270.2,3270.0,3.51359]
[1736541518308,0.76628,3270.2,3270.0,3.2078]
[1736541518515,0.4605,3270.2,3270.0,3.2078]
[1736541518808,0.4605,3270.2,3270.1,0.30578]
[1736541519108,0.4778,3270.4,3270.0,3.2078]
[1736541519305,0.30578,3270.1,3270.0,3.2078]
[1736541519509,2.60179499,3270.2,3269.5,3.66]
[1736541519709,0.30582,3269.7,3269.6,0.30582]
[1736541519909,0.30581,3269.8,3269.7,0.30582]
[1736541520111,2.60179499,3270.2,3269.5,3.66]
[1736541520507,2.60179499,3270.2,3269.6,0.30582]
[1736541520713,0.30583,3269.7,3269.5,3.96583]
[1736541521110,0.30583,3269.6,3269.5,3.2078]
[1736541521302,5.33549499,3269.9,3269.1,44.461]
[1736541521505,0.30586,3269.2,3269.1,3.661]
[1736541521910,0.30586,3269.3,3269.2,0.30586]
[1736541522110,2.12769499,3269.6,3269.1,3.2078]
[1736541522418,0.30586,3269.2,3269.1,3.2078]
[1736541522612,0.30586,3269.2,3269.1,3.51367]
[1736541523311,2.12769499,3269.6,3268.7,41.2532]
[1736541524108,3.2078,3269.5,3268.7,41.2532]
[1736541524409,0.30586,3269.3,3268.9,0.30589]
[1736541524615,0.30588,3269.1,3269.0,0.30588]
[1736541524810,0.443,3269.4,3268.7,40.8]
[1736541524811,2.12769499,3269.3,3268.7,40.8]
[1736541525005,0.30587,3269.2,3269.0,0.30588]
[1736541525407,0.30586,3269.3,3269.2,0.30586]
[1736541525612,0.74885,3269.4,3269.3,0.30586]
[1736541525817,0.443,3269.4,3269.0,3.2078]
[1736541526112,0.30586,3269.3,3269.2,0.30586]
[1736541526311,0.30586,3269.2,3269.1,0.479]
[1736541526519,0.30587,3269.1,3269.0,3.51368]
[1736541526810,0.30587,3269.1,3269.0,3.2078]
[1736541527714,0.77057,3269.1,3269.0,3.2078]
[1736541528617,0.4647,3269.1,3268.9,0.30588]
[1736541528816,0.77058,3269.1,3269.0,0.30588]
[1736541529214,0.464,3269.2,3269.0,0.30588]
[1736541529519,0.76987,3269.2,3269.1,0.30587]
[1736541529721,0.74885,3269.4,3269.3,0.30586]
[1736541529921,0.74885,3269.4,3269.2,0.30586]
[1736541529922,0.443,3269.4,3269.2,0.30586]
[1736541530120,0.30587,3269.2,3269.1,0.30587]
[1736541531119,0.30587,3269.1,3269.0,3.51368]
[1736541532629,0.30587,3269.1,3269.0,3.2078]
[1736541533221,0.30589,3269.0,3268.9,0.30589]
[1736541533724,2.60099499,3269.3,3268.7,40.8]
[1736541533923,0.30588,3269.1,3269.0,0.30588]
[1736541535025,0.3059,3269.0,3268.9,0.30589]
[1736541535322,0.30585,3269.4,3269.3,0.30586]
[1736541535528,3.2078,3269.5,3269.4,0.30585]
[1736541535825,0.78722,3269.8,3269.7,0.30582]
[1736541536036,4.1518,3270.4,3269.5,3.6487]
[1736541536324,0.30577,3270.3,3270.2,0.30576]
[1736541536717,0.30579,3270.2,3270.1,0.30578]
[1736541536929,0.30579,3270.2,3270.1,41.10578]
[1736541537125,0.30578,3270.1,3270.0,0.30578]
[1736541537318,0.30577,3270.3,3270.2,0.30576]
[1736541537725,0.4788,3270.4,3270.0,40.8]
[1736541537923,0.30578,3270.1,3270.0,41.10579]
[1736541538321,0.30578,3270.1,3270.0,40.8]
[1736541539229,0.30582,3269.7,3269.6,0.30582]
[1736541540223,6.10001499,3269.9,3269.2,40.8]
[1736541540422,0.30585,3269.5,3269.2,40.8]
[1736541540623,0.30585,3269.5,3269.4,0.30584]
[1736541541430,2.43352499,3269.6,3269.5,0.30584]
[1736541541625,0.30583,3269.6,3269.5,0.30584]
[1736541541823,0.76453,3269.8,3269.2,40.8]
[1736541542025,0.45,3269.7,3269.2,40.8]
[1736541542519,0.30587,3269.2,3269.1,0.30587]
[1736541542921,0.30587,3269.1,3269.0,0.75628]
[1736541543334,0.30587,3269.1,3269.0,0.4504]
[1736541543535,0.30587,3269.1,3269.0,41.2504]
[1736541543827,0.30587,3269.1,3268.5,3.2078]
[1736541543828,0.30592,3268.6,3268.5,3.2078]
[1736541544033,0.30592,3268.6,3268.5,0.30593]
[1736541544230,0.30592,3268.6,3268.5,40.8]
[1736541545522,3.51372,3268.6,3268.5,40.8]
[1736541546035,0.30596,3268.2,3268.1,0.30596]
[1736541546531,0.30597,3268.1,3268.0,0.4556]
[1736541546832,0.30597,3268.1,3268.0,41.2556]
[1736541547028,2.58982358,3268.1,3267.8,3.2078]
[1736541547332,0.30601,3267.7,3267.6,0.30601]
[1736541547530,5.79762358,3268.1,3267.5,0.4583]
[1736541548131,0.30601,3267.6,3267.5,0.4583]
[1736541548335,5.79762358,3268.1,3267.5,0.4583]
[1736541548642,2.58982358,3267.7,3266.9,3.2078]
[1736541548827,0.4631,3267.6,3267.0,0.4797]
[1736541549136,0.30605,3267.3,3267.1,0.30605]
[1736541549331,0.30606,3267.1,3267.0,0.4797]
[1736541549635,0.30605,3267.3,3267.1,0.30606]
[1736541550030,0.9278,3267.6,3267.2,0.30605]
[1736541550336,0.9278,3267.6,3267.0,0.4797]
[1736541550538,0.30606,3267.1,3267.0,0.4797]
[1736541550737,0.30606,3267.2,3267.0,0.78577]
[1736541551431,0.30606,3267.1,3267.0,0.4797]
[1736541551835,0.30604,3267.4,3267.2,0.30605]
[1736541552134,3.2078,3267.7,3267.6,0.30601]
[1736541552336,3.51381,3267.7,3267.5,0.30602]
[1736541552530,3.2078,3267.7,3267.2,3.2078]
[1736541553035,3.51381,3267.7,3267.5,0.30602]
[1736541553436,0.30602,3267.6,3267.5,0.30602]
[1736541553835,0.30602,3267.6,3267.5,40.8]
[1736541554041,3.2078,3267.7,3267.2,3.2078]
[1736541554229,5.79762358,3267.7,3267.0,0.4797]
[1736541554543,0.30605,3267.2,3267.1,40.8]
[1736541555039,0.77455,3267.2,3267.1,40.8]
[1736541557339,0.4685,3267.2,3266.3,4.1295]
[1736541557542,0.30608,3266.9,3266.8,0.30608]
[1736541557740,0.30608,3266.9,3266.8,41.10608]
[1736541558044,5.79762358,3266.9,3266.3,3.6577]
[1736541558250,0.30613,3266.4,3266.3,0.4499]
[1736541558743,0.30613,3266.4,3266.3,41.55604]
[1736541558938,2.58982358,3266.5,3265.9,3.2078]
[1736541559140,0.30615,3266.2,3266.1,0.30615]
[1736541559538,0.4437,3266.2,3265.5,3.2078]
[1736541559839,0.30618,3265.9,3265.7,0.30619]